{"text_format":"1","workbook":"xlsx","n_sheets":3,"sheets":["List1","List2","List3"],"not_rendered":{"charts":0,"images":0,"macros":1,"external_links":0,"defined_names":0,"comments":0,"pivot_tables":0},"unopened":[],"bounds":{"document_bytes":16777216,"sheet_cells":100000,"rows_first":2000,"rows_last":500,"rows_between":2000,"halvings":0,"cell_chars":16384,"cell_head_chars":4096},"cells_cut":0,"cells_raw":0,"read":"whole","date_system":"1900"}

{"sheet":"List1","index":0,"n_rows":1000,"n_cols":8,"rows_kept":1000,"cut":false,"hidden":false,"merged":[]}
[1,"skrytý stĺpec H",null,null,null,null,"stĺpec H skryť",{"$f":"IF(A1=\"\",\"\",A1)","v":1}]
[2,{"$f":"H1000","v":"1|2|3|4"},null,null,null,null,null,{"$f":"IF(A2=\"\",H1,H1&\"|\"&A2)","v":"1|2"}]
[3,"UDF (oblať vzorcom)",null,null,null,null,null,{"$f":"IF(A3=\"\",H2,H2&\"|\"&A3)","v":"1|2|3"}]
[4,{"$f":"IF(COUNTIF($A:$A,\"<>\")=0,\"\",spojtextv(OFFSET($A$1,,,COUNTIF($A:$A,\"<>\"))))","v":"1|2|3|4"},null,null,null,null,null,"1|2|3|4"]
[null,"UDF (oblať makrom)",null,null,null,null,null,"1|2|3|4"]
[null,{"$f":"spojtextm()","v":"1|2|3|4"},null,null,null,null,null,"1|2|3|4"]
[null,"makro",null,null,null,null,null,"1|2|3|4"]
[null,"1|2|3|4",null,null,null,null,null,"1|2|3|4"]
[null,null,null,null,null,null,null,"1|2|3|4"]
[null,null,null,null,null,null,null,"1|2|3|4"]
[null,null,null,null,null,null,null,"1|2|3|4"]
[null,null,null,null,null,null,null,"1|2|3|4"]
[null,null,null,null,null,null,null,"1|2|3|4"]
[null,null,null,null,null,null,null,"1|2|3|4"]
[null,null,null,null,null,null,null,"1|2|3|4"]
[null,null,null,null,null,null,null,"1|2|3|4"]
[null,null,null,null,null,null,null,"1|2|3|4"]
[null,null,null,null,null,null,null,"1|2|3|4"]
[null,null,null,null,null,null,null,"1|2|3|4"]
[null,null,null,null,null,null,null,"1|2|3|4"]
[null,null,null,null,null,null,null,"1|2|3|4"]
[null,null,null,null,null,null,null,"1|2|3|4"]
[null,null,null,null,null,null,null,"1|2|3|4"]
[null,null,null,null,null,null,null,"1|2|3|4"]
[null,null,null,null,null,null,null,"1|2|3|4"]
[null,null,null,null,null,null,null,"1|2|3|4"]
[null,null,null,null,null,null,null,"1|2|3|4"]
[null,null,null,null,null,null,null,"1|2|3|4"]
[null,null,null,null,null,null,null,"1|2|3|4"]
[null,null,null,null,null,null,null,"1|2|3|4"]
[null,null,null,null,null,null,null,"1|2|3|4"]
[null,null,null,null,null,null,null,"1|2|3|4"]
[null,null,null,null,null,null,null,"1|2|3|4"]
[null,null,null,null,null,null,null,"1|2|3|4"]
[null,null,null,null,null,null,null,"1|2|3|4"]
[null,null,null,null,null,null,null,"1|2|3|4"]
[null,null,null,null,null,null,null,"1|2|3|4"]
[null,null,null,null,null,null,null,"1|2|3|4"]
[null,null,null,null,null,null,null,"1|2|3|4"]
[null,null,null,null,null,null,null,"1|2|3|4"]
[null,null,null,null,null,null,null,"1|2|3|4"]
[null,null,null,null,null,null,null,"1|2|3|4"]
[null,null,null,null,null,null,null,"1|2|3|4"]
[null,null,null,null,null,null,null,"1|2|3|4"]
[null,null,null,null,null,null,null,"1|2|3|4"]
[null,null,null,null,null,null,null,"1|2|3|4"]
[null,null,null,null,null,null,null,"1|2|3|4"]
[null,null,null,null,null,null,null,"1|2|3|4"]
[null,null,null,null,null,null,null,"1|2|3|4"]
[null,null,null,null,null,null,null,"1|2|3|4"]
[null,null,null,null,null,null,null,"1|2|3|4"]
[null,null,null,null,null,null,null,"1|2|3|4"]
[null,null,null,null,null,null,null,"1|2|3|4"]
[null,null,null,null,null,null,null,"1|2|3|4"]
[null,null,null,null,null,null,null,"1|2|3|4"]
[null,null,null,null,null,null,null,"1|2|3|4"]
[null,null,null,null,null,null,null,"1|2|3|4"]
[null,null,null,null,null,null,null,"1|2|3|4"]
[null,null,null,null,null,null,null,"1|2|3|4"]
[null,null,null,null,null,null,null,"1|2|3|4"]
[null,null,null,null,null,null,null,"1|2|3|4"]
[null,null,null,null,null,null,null,"1|2|3|4"]
[null,null,null,null,null,null,null,"1|2|3|4"]
[null,null,null,null,null,null,null,"1|2|3|4"]
[null,null,null,null,null,null,null,"1|2|3|4"]
[null,null,null,null,null,null,null,"1|2|3|4"]
[null,null,null,null,null,null,null,{"$f":"IF(A67=\"\",H66,H66&\"|\"&A67)","v":"1|2|3|4"}]
[null,null,null,null,null,null,null,"1|2|3|4"]
[null,null,null,null,null,null,null,"1|2|3|4"]
[null,null,null,null,null,null,null,"1|2|3|4"]
[null,null,null,null,null,null,null,"1|2|3|4"]
[null,null,null,null,null,null,null,"1|2|3|4"]
[null,null,null,null,null,null,null,"1|2|3|4"]
[null,null,null,null,null,null,null,"1|2|3|4"]
[null,null,null,null,null,null,null,"1|2|3|4"]
[null,null,null,null,null,null,null,"1|2|3|4"]
[null,null,null,null,null,null,null,"1|2|3|4"]
[null,null,null,null,null,null,null,"1|2|3|4"]
[null,null,null,null,null,null,null,"1|2|3|4"]
[null,null,null,null,null,null,null,"1|2|3|4"]
[null,null,null,null,null,null,null,"1|2|3|4"]
[null,null,null,null,null,null,null,"1|2|3|4"]
[null,null,null,null,null,null,null,"1|2|3|4"]
[null,null,null,null,null,null,null,"1|2|3|4"]
[null,null,null,null,null,null,null,"1|2|3|4"]
[null,null,null,null,null,null,null,"1|2|3|4"]
[null,null,null,null,null,null,null,"1|2|3|4"]
[null,null,null,null,null,null,null,"1|2|3|4"]
[null,null,null,null,null,null,null,"1|2|3|4"]
[null,null,null,null,null,null,null,"1|2|3|4"]
[null,null,null,null,null,null,null,"1|2|3|4"]
[null,null,null,null,null,null,null,"1|2|3|4"]
[null,null,null,null,null,null,null,"1|2|3|4"]
[null,null,null,null,null,null,null,"1|2|3|4"]
[null,null,null,null,null,null,null,"1|2|3|4"]
[null,null,null,null,null,null,null,"1|2|3|4"]
[null,null,null,null,null,null,null,"1|2|3|4"]
[null,null,null,null,null,null,null,"1|2|3|4"]
[null,null,null,null,null,null,null,"1|2|3|4"]
[null,null,null,null,null,null,null,"1|2|3|4"]
[null,null,null,null,null,null,null,"1|2|3|4"]
[null,null,null,null,null,null,null,"1|2|3|4"]
[null,null,null,null,null,null,null,"1|2|3|4"]
[null,null,null,null,null,null,null,"1|2|3|4"]
[null,null,null,null,null,null,null,"1|2|3|4"]
[null,null,null,null,null,null,null,"1|2|3|4"]
[null,null,null,null,null,null,null,"1|2|3|4"]
[null,null,null,null,null,null,null,"1|2|3|4"]
[null,null,null,null,null,null,null,"1|2|3|4"]
[null,null,null,null,null,null,null,"1|2|3|4"]
[null,null,null,null,null,null,null,"1|2|3|4"]
[null,null,null,null,null,null,null,"1|2|3|4"]
[null,null,null,null,null,null,null,"1|2|3|4"]
[null,null,null,null,null,null,null,"1|2|3|4"]
[null,null,null,null,null,null,null,"1|2|3|4"]
[null,null,null,null,null,null,null,"1|2|3|4"]
[null,null,null,null,null,null,null,"1|2|3|4"]
[null,null,null,null,null,null,null,"1|2|3|4"]
[null,null,null,null,null,null,null,"1|2|3|4"]
[null,null,null,null,null,null,null,"1|2|3|4"]
[null,null,null,null,null,null,null,"1|2|3|4"]
[null,null,null,null,null,null,null,"1|2|3|4"]
[null,null,null,null,null,null,null,"1|2|3|4"]
[null,null,null,null,null,null,null,"1|2|3|4"]
[null,null,null,null,null,null,null,"1|2|3|4"]
[null,null,null,null,null,null,null,"1|2|3|4"]
[null,null,null,null,null,null,null,"1|2|3|4"]
[null,null,null,null,null,null,null,"1|2|3|4"]
[null,null,null,null,null,null,null,"1|2|3|4"]
[null,null,null,null,null,null,null,"1|2|3|4"]
[null,null,null,null,null,null,null,{"$f":"IF(A131=\"\",H130,H130&\"|\"&A131)","v":"1|2|3|4"}]
[null,null,null,null,null,null,null,"1|2|3|4"]
[null,null,null,null,null,null,null,"1|2|3|4"]
[null,null,null,null,null,null,null,"1|2|3|4"]
[null,null,null,null,null,null,null,"1|2|3|4"]
[null,null,null,null,null,null,null,"1|2|3|4"]
[null,null,null,null,null,null,null,"1|2|3|4"]
[null,null,null,null,null,null,null,"1|2|3|4"]
[null,null,null,null,null,null,null,"1|2|3|4"]
[null,null,null,null,null,null,null,"1|2|3|4"]
[null,null,null,null,null,null,null,"1|2|3|4"]
[null,null,null,null,null,null,null,"1|2|3|4"]
[null,null,null,null,null,null,null,"1|2|3|4"]
[null,null,null,null,null,null,null,"1|2|3|4"]
[null,null,null,null,null,null,null,"1|2|3|4"]
[null,null,null,null,null,null,null,"1|2|3|4"]
[null,null,null,null,null,null,null,"1|2|3|4"]
[null,null,null,null,null,null,null,"1|2|3|4"]
[null,null,null,null,null,null,null,"1|2|3|4"]
[null,null,null,null,null,null,null,"1|2|3|4"]
[null,null,null,null,null,null,null,"1|2|3|4"]
[null,null,null,null,null,null,null,"1|2|3|4"]
[null,null,null,null,null,null,null,"1|2|3|4"]
[null,null,null,null,null,null,null,"1|2|3|4"]
[null,null,null,null,null,null,null,"1|2|3|4"]
[null,null,null,null,null,null,null,"1|2|3|4"]
[null,null,null,null,null,null,null,"1|2|3|4"]
[null,null,null,null,null,null,null,"1|2|3|4"]
[null,null,null,null,null,null,null,"1|2|3|4"]
[null,null,null,null,null,null,null,"1|2|3|4"]
[null,null,null,null,null,null,null,"1|2|3|4"]
[null,null,null,null,null,null,null,"1|2|3|4"]
[null,null,null,null,null,null,null,"1|2|3|4"]
[null,null,null,null,null,null,null,"1|2|3|4"]
[null,null,null,null,null,null,null,"1|2|3|4"]
[null,null,null,null,null,null,null,"1|2|3|4"]
[null,null,null,null,null,null,null,"1|2|3|4"]
[null,null,null,null,null,null,null,"1|2|3|4"]
[null,null,null,null,null,null,null,"1|2|3|4"]
[null,null,null,null,null,null,null,"1|2|3|4"]
[null,null,null,null,null,null,null,"1|2|3|4"]
[null,null,null,null,null,null,null,"1|2|3|4"]
[null,null,null,null,null,null,null,"1|2|3|4"]
[null,null,null,null,null,null,null,"1|2|3|4"]
[null,null,null,null,null,null,null,"1|2|3|4"]
[null,null,null,null,null,null,null,"1|2|3|4"]
[null,null,null,null,null,null,null,"1|2|3|4"]
[null,null,null,null,null,null,null,"1|2|3|4"]
[null,null,null,null,null,null,null,"1|2|3|4"]
[null,null,null,null,null,null,null,"1|2|3|4"]
[null,null,null,null,null,null,null,"1|2|3|4"]
[null,null,null,null,null,null,null,"1|2|3|4"]
[null,null,null,null,null,null,null,"1|2|3|4"]
[null,null,null,null,null,null,null,"1|2|3|4"]
[null,null,null,null,null,null,null,"1|2|3|4"]
[null,null,null,null,null,null,null,"1|2|3|4"]
[null,null,null,null,null,null,null,"1|2|3|4"]
[null,null,null,null,null,null,null,"1|2|3|4"]
[null,null,null,null,null,null,null,"1|2|3|4"]
[null,null,null,null,null,null,null,"1|2|3|4"]
[null,null,null,null,null,null,null,"1|2|3|4"]
[null,null,null,null,null,null,null,"1|2|3|4"]
[null,null,null,null,null,null,null,"1|2|3|4"]
[null,null,null,null,null,null,null,"1|2|3|4"]
[null,null,null,null,null,null,null,{"$f":"IF(A195=\"\",H194,H194&\"|\"&A195)","v":"1|2|3|4"}]
[null,null,null,null,null,null,null,"1|2|3|4"]
[null,null,null,null,null,null,null,"1|2|3|4"]
[null,null,null,null,null,null,null,"1|2|3|4"]
[null,null,null,null,null,null,null,"1|2|3|4"]
[null,null,null,null,null,null,null,"1|2|3|4"]
[null,null,null,null,null,null,null,"1|2|3|4"]
[null,null,null,null,null,null,null,"1|2|3|4"]
[null,null,null,null,null,null,null,"1|2|3|4"]
[null,null,null,null,null,null,null,"1|2|3|4"]
[null,null,null,null,null,null,null,"1|2|3|4"]
[null,null,null,null,null,null,null,"1|2|3|4"]
[null,null,null,null,null,null,null,"1|2|3|4"]
[null,null,null,null,null,null,null,"1|2|3|4"]
[null,null,null,null,null,null,null,"1|2|3|4"]
[null,null,null,null,null,null,null,"1|2|3|4"]
[null,null,null,null,null,null,null,"1|2|3|4"]
[null,null,null,null,null,null,null,"1|2|3|4"]
[null,null,null,null,null,null,null,"1|2|3|4"]
[null,null,null,null,null,null,null,"1|2|3|4"]
[null,null,null,null,null,null,null,"1|2|3|4"]
[null,null,null,null,null,null,null,"1|2|3|4"]
[null,null,null,null,null,null,null,"1|2|3|4"]
[null,null,null,null,null,null,null,"1|2|3|4"]
[null,null,null,null,null,null,null,"1|2|3|4"]
[null,null,null,null,null,null,null,"1|2|3|4"]
[null,null,null,null,null,null,null,"1|2|3|4"]
[null,null,null,null,null,null,null,"1|2|3|4"]
[null,null,null,null,null,null,null,"1|2|3|4"]
[null,null,null,null,null,null,null,"1|2|3|4"]
[null,null,null,null,null,null,null,"1|2|3|4"]
[null,null,null,null,null,null,null,"1|2|3|4"]
[null,null,null,null,null,null,null,"1|2|3|4"]
[null,null,null,null,null,null,null,"1|2|3|4"]
[null,null,null,null,null,null,null,"1|2|3|4"]
[null,null,null,null,null,null,null,"1|2|3|4"]
[null,null,null,null,null,null,null,"1|2|3|4"]
[null,null,null,null,null,null,null,"1|2|3|4"]
[null,null,null,null,null,null,null,"1|2|3|4"]
[null,null,null,null,null,null,null,"1|2|3|4"]
[null,null,null,null,null,null,null,"1|2|3|4"]
[null,null,null,null,null,null,null,"1|2|3|4"]
[null,null,null,null,null,null,null,"1|2|3|4"]
[null,null,null,null,null,null,null,"1|2|3|4"]
[null,null,null,null,null,null,null,"1|2|3|4"]
[null,null,null,null,null,null,null,"1|2|3|4"]
[null,null,null,null,null,null,null,"1|2|3|4"]
[null,null,null,null,null,null,null,"1|2|3|4"]
[null,null,null,null,null,null,null,"1|2|3|4"]
[null,null,null,null,null,null,null,"1|2|3|4"]
[null,null,null,null,null,null,null,"1|2|3|4"]
[null,null,null,null,null,null,null,"1|2|3|4"]
[null,null,null,null,null,null,null,"1|2|3|4"]
[null,null,null,null,null,null,null,"1|2|3|4"]
[null,null,null,null,null,null,null,"1|2|3|4"]
[null,null,null,null,null,null,null,"1|2|3|4"]
[null,null,null,null,null,null,null,"1|2|3|4"]
[null,null,null,null,null,null,null,"1|2|3|4"]
[null,null,null,null,null,null,null,"1|2|3|4"]
[null,null,null,null,null,null,null,"1|2|3|4"]
[null,null,null,null,null,null,null,"1|2|3|4"]
[null,null,null,null,null,null,null,"1|2|3|4"]
[null,null,null,null,null,null,null,"1|2|3|4"]
[null,null,null,null,null,null,null,"1|2|3|4"]
[null,null,null,null,null,null,null,{"$f":"IF(A259=\"\",H258,H258&\"|\"&A259)","v":"1|2|3|4"}]
[null,null,null,null,null,null,null,"1|2|3|4"]
[null,null,null,null,null,null,null,"1|2|3|4"]
[null,null,null,null,null,null,null,"1|2|3|4"]
[null,null,null,null,null,null,null,"1|2|3|4"]
[null,null,null,null,null,null,null,"1|2|3|4"]
[null,null,null,null,null,null,null,"1|2|3|4"]
[null,null,null,null,null,null,null,"1|2|3|4"]
[null,null,null,null,null,null,null,"1|2|3|4"]
[null,null,null,null,null,null,null,"1|2|3|4"]
[null,null,null,null,null,null,null,"1|2|3|4"]
[null,null,null,null,null,null,null,"1|2|3|4"]
[null,null,null,null,null,null,null,"1|2|3|4"]
[null,null,null,null,null,null,null,"1|2|3|4"]
[null,null,null,null,null,null,null,"1|2|3|4"]
[null,null,null,null,null,null,null,"1|2|3|4"]
[null,null,null,null,null,null,null,"1|2|3|4"]
[null,null,null,null,null,null,null,"1|2|3|4"]
[null,null,null,null,null,null,null,"1|2|3|4"]
[null,null,null,null,null,null,null,"1|2|3|4"]
[null,null,null,null,null,null,null,"1|2|3|4"]
[null,null,null,null,null,null,null,"1|2|3|4"]
[null,null,null,null,null,null,null,"1|2|3|4"]
[null,null,null,null,null,null,null,"1|2|3|4"]
[null,null,null,null,null,null,null,"1|2|3|4"]
[null,null,null,null,null,null,null,"1|2|3|4"]
[null,null,null,null,null,null,null,"1|2|3|4"]
[null,null,null,null,null,null,null,"1|2|3|4"]
[null,null,null,null,null,null,null,"1|2|3|4"]
[null,null,null,null,null,null,null,"1|2|3|4"]
[null,null,null,null,null,null,null,"1|2|3|4"]
[null,null,null,null,null,null,null,"1|2|3|4"]
[null,null,null,null,null,null,null,"1|2|3|4"]
[null,null,null,null,null,null,null,"1|2|3|4"]
[null,null,null,null,null,null,null,"1|2|3|4"]
[null,null,null,null,null,null,null,"1|2|3|4"]
[null,null,null,null,null,null,null,"1|2|3|4"]
[null,null,null,null,null,null,null,"1|2|3|4"]
[null,null,null,null,null,null,null,"1|2|3|4"]
[null,null,null,null,null,null,null,"1|2|3|4"]
[null,null,null,null,null,null,null,"1|2|3|4"]
[null,null,null,null,null,null,null,"1|2|3|4"]
[null,null,null,null,null,null,null,"1|2|3|4"]
[null,null,null,null,null,null,null,"1|2|3|4"]
[null,null,null,null,null,null,null,"1|2|3|4"]
[null,null,null,null,null,null,null,"1|2|3|4"]
[null,null,null,null,null,null,null,"1|2|3|4"]
[null,null,null,null,null,null,null,"1|2|3|4"]
[null,null,null,null,null,null,null,"1|2|3|4"]
[null,null,null,null,null,null,null,"1|2|3|4"]
[null,null,null,null,null,null,null,"1|2|3|4"]
[null,null,null,null,null,null,null,"1|2|3|4"]
[null,null,null,null,null,null,null,"1|2|3|4"]
[null,null,null,null,null,null,null,"1|2|3|4"]
[null,null,null,null,null,null,null,"1|2|3|4"]
[null,null,null,null,null,null,null,"1|2|3|4"]
[null,null,null,null,null,null,null,"1|2|3|4"]
[null,null,null,null,null,null,null,"1|2|3|4"]
[null,null,null,null,null,null,null,"1|2|3|4"]
[null,null,null,null,null,null,null,"1|2|3|4"]
[null,null,null,null,null,null,null,"1|2|3|4"]
[null,null,null,null,null,null,null,"1|2|3|4"]
[null,null,null,null,null,null,null,"1|2|3|4"]
[null,null,null,null,null,null,null,"1|2|3|4"]
[null,null,null,null,null,null,null,{"$f":"IF(A323=\"\",H322,H322&\"|\"&A323)","v":"1|2|3|4"}]
[null,null,null,null,null,null,null,"1|2|3|4"]
[null,null,null,null,null,null,null,"1|2|3|4"]
[null,null,null,null,null,null,null,"1|2|3|4"]
[null,null,null,null,null,null,null,"1|2|3|4"]
[null,null,null,null,null,null,null,"1|2|3|4"]
[null,null,null,null,null,null,null,"1|2|3|4"]
[null,null,null,null,null,null,null,"1|2|3|4"]
[null,null,null,null,null,null,null,"1|2|3|4"]
[null,null,null,null,null,null,null,"1|2|3|4"]
[null,null,null,null,null,null,null,"1|2|3|4"]
[null,null,null,null,null,null,null,"1|2|3|4"]
[null,null,null,null,null,null,null,"1|2|3|4"]
[null,null,null,null,null,null,null,"1|2|3|4"]
[null,null,null,null,null,null,null,"1|2|3|4"]
[null,null,null,null,null,null,null,"1|2|3|4"]
[null,null,null,null,null,null,null,"1|2|3|4"]
[null,null,null,null,null,null,null,"1|2|3|4"]
[null,null,null,null,null,null,null,"1|2|3|4"]
[null,null,null,null,null,null,null,"1|2|3|4"]
[null,null,null,null,null,null,null,"1|2|3|4"]
[null,null,null,null,null,null,null,"1|2|3|4"]
[null,null,null,null,null,null,null,"1|2|3|4"]
[null,null,null,null,null,null,null,"1|2|3|4"]
[null,null,null,null,null,null,null,"1|2|3|4"]
[null,null,null,null,null,null,null,"1|2|3|4"]
[null,null,null,null,null,null,null,"1|2|3|4"]
[null,null,null,null,null,null,null,"1|2|3|4"]
[null,null,null,null,null,null,null,"1|2|3|4"]
[null,null,null,null,null,null,null,"1|2|3|4"]
[null,null,null,null,null,null,null,"1|2|3|4"]
[null,null,null,null,null,null,null,"1|2|3|4"]
[null,null,null,null,null,null,null,"1|2|3|4"]
[null,null,null,null,null,null,null,"1|2|3|4"]
[null,null,null,null,null,null,null,"1|2|3|4"]
[null,null,null,null,null,null,null,"1|2|3|4"]
[null,null,null,null,null,null,null,"1|2|3|4"]
[null,null,null,null,null,null,null,"1|2|3|4"]
[null,null,null,null,null,null,null,"1|2|3|4"]
[null,null,null,null,null,null,null,"1|2|3|4"]
[null,null,null,null,null,null,null,"1|2|3|4"]
[null,null,null,null,null,null,null,"1|2|3|4"]
[null,null,null,null,null,null,null,"1|2|3|4"]
[null,null,null,null,null,null,null,"1|2|3|4"]
[null,null,null,null,null,null,null,"1|2|3|4"]
[null,null,null,null,null,null,null,"1|2|3|4"]
[null,null,null,null,null,null,null,"1|2|3|4"]
[null,null,null,null,null,null,null,"1|2|3|4"]
[null,null,null,null,null,null,null,"1|2|3|4"]
[null,null,null,null,null,null,null,"1|2|3|4"]
[null,null,null,null,null,null,null,"1|2|3|4"]
[null,null,null,null,null,null,null,"1|2|3|4"]
[null,null,null,null,null,null,null,"1|2|3|4"]
[null,null,null,null,null,null,null,"1|2|3|4"]
[null,null,null,null,null,null,null,"1|2|3|4"]
[null,null,null,null,null,null,null,"1|2|3|4"]
[null,null,null,null,null,null,null,"1|2|3|4"]
[null,null,null,null,null,null,null,"1|2|3|4"]
[null,null,null,null,null,null,null,"1|2|3|4"]
[null,null,null,null,null,null,null,"1|2|3|4"]
[null,null,null,null,null,null,null,"1|2|3|4"]
[null,null,null,null,null,null,null,"1|2|3|4"]
[null,null,null,null,null,null,null,"1|2|3|4"]
[null,null,null,null,null,null,null,"1|2|3|4"]
[null,null,null,null,null,null,null,{"$f":"IF(A387=\"\",H386,H386&\"|\"&A387)","v":"1|2|3|4"}]
[null,null,null,null,null,null,null,"1|2|3|4"]
[null,null,null,null,null,null,null,"1|2|3|4"]
[null,null,null,null,null,null,null,"1|2|3|4"]
[null,null,null,null,null,null,null,"1|2|3|4"]
[null,null,null,null,null,null,null,"1|2|3|4"]
[null,null,null,null,null,null,null,"1|2|3|4"]
[null,null,null,null,null,null,null,"1|2|3|4"]
[null,null,null,null,null,null,null,"1|2|3|4"]
[null,null,null,null,null,null,null,"1|2|3|4"]
[null,null,null,null,null,null,null,"1|2|3|4"]
[null,null,null,null,null,null,null,"1|2|3|4"]
[null,null,null,null,null,null,null,"1|2|3|4"]
[null,null,null,null,null,null,null,"1|2|3|4"]
[null,null,null,null,null,null,null,"1|2|3|4"]
[null,null,null,null,null,null,null,"1|2|3|4"]
[null,null,null,null,null,null,null,"1|2|3|4"]
[null,null,null,null,null,null,null,"1|2|3|4"]
[null,null,null,null,null,null,null,"1|2|3|4"]
[null,null,null,null,null,null,null,"1|2|3|4"]
[null,null,null,null,null,null,null,"1|2|3|4"]
[null,null,null,null,null,null,null,"1|2|3|4"]
[null,null,null,null,null,null,null,"1|2|3|4"]
[null,null,null,null,null,null,null,"1|2|3|4"]
[null,null,null,null,null,null,null,"1|2|3|4"]
[null,null,null,null,null,null,null,"1|2|3|4"]
[null,null,null,null,null,null,null,"1|2|3|4"]
[null,null,null,null,null,null,null,"1|2|3|4"]
[null,null,null,null,null,null,null,"1|2|3|4"]
[null,null,null,null,null,null,null,"1|2|3|4"]
[null,null,null,null,null,null,null,"1|2|3|4"]
[null,null,null,null,null,null,null,"1|2|3|4"]
[null,null,null,null,null,null,null,"1|2|3|4"]
[null,null,null,null,null,null,null,"1|2|3|4"]
[null,null,null,null,null,null,null,"1|2|3|4"]
[null,null,null,null,null,null,null,"1|2|3|4"]
[null,null,null,null,null,null,null,"1|2|3|4"]
[null,null,null,null,null,null,null,"1|2|3|4"]
[null,null,null,null,null,null,null,"1|2|3|4"]
[null,null,null,null,null,null,null,"1|2|3|4"]
[null,null,null,null,null,null,null,"1|2|3|4"]
[null,null,null,null,null,null,null,"1|2|3|4"]
[null,null,null,null,null,null,null,"1|2|3|4"]
[null,null,null,null,null,null,null,"1|2|3|4"]
[null,null,null,null,null,null,null,"1|2|3|4"]
[null,null,null,null,null,null,null,"1|2|3|4"]
[null,null,null,null,null,null,null,"1|2|3|4"]
[null,null,null,null,null,null,null,"1|2|3|4"]
[null,null,null,null,null,null,null,"1|2|3|4"]
[null,null,null,null,null,null,null,"1|2|3|4"]
[null,null,null,null,null,null,null,"1|2|3|4"]
[null,null,null,null,null,null,null,"1|2|3|4"]
[null,null,null,null,null,null,null,"1|2|3|4"]
[null,null,null,null,null,null,null,"1|2|3|4"]
[null,null,null,null,null,null,null,"1|2|3|4"]
[null,null,null,null,null,null,null,"1|2|3|4"]
[null,null,null,null,null,null,null,"1|2|3|4"]
[null,null,null,null,null,null,null,"1|2|3|4"]
[null,null,null,null,null,null,null,"1|2|3|4"]
[null,null,null,null,null,null,null,"1|2|3|4"]
[null,null,null,null,null,null,null,"1|2|3|4"]
[null,null,null,null,null,null,null,"1|2|3|4"]
[null,null,null,null,null,null,null,"1|2|3|4"]
[null,null,null,null,null,null,null,"1|2|3|4"]
[null,null,null,null,null,null,null,{"$f":"IF(A451=\"\",H450,H450&\"|\"&A451)","v":"1|2|3|4"}]
[null,null,null,null,null,null,null,"1|2|3|4"]
[null,null,null,null,null,null,null,"1|2|3|4"]
[null,null,null,null,null,null,null,"1|2|3|4"]
[null,null,null,null,null,null,null,"1|2|3|4"]
[null,null,null,null,null,null,null,"1|2|3|4"]
[null,null,null,null,null,null,null,"1|2|3|4"]
[null,null,null,null,null,null,null,"1|2|3|4"]
[null,null,null,null,null,null,null,"1|2|3|4"]
[null,null,null,null,null,null,null,"1|2|3|4"]
[null,null,null,null,null,null,null,"1|2|3|4"]
[null,null,null,null,null,null,null,"1|2|3|4"]
[null,null,null,null,null,null,null,"1|2|3|4"]
[null,null,null,null,null,null,null,"1|2|3|4"]
[null,null,null,null,null,null,null,"1|2|3|4"]
[null,null,null,null,null,null,null,"1|2|3|4"]
[null,null,null,null,null,null,null,"1|2|3|4"]
[null,null,null,null,null,null,null,"1|2|3|4"]
[null,null,null,null,null,null,null,"1|2|3|4"]
[null,null,null,null,null,null,null,"1|2|3|4"]
[null,null,null,null,null,null,null,"1|2|3|4"]
[null,null,null,null,null,null,null,"1|2|3|4"]
[null,null,null,null,null,null,null,"1|2|3|4"]
[null,null,null,null,null,null,null,"1|2|3|4"]
[null,null,null,null,null,null,null,"1|2|3|4"]
[null,null,null,null,null,null,null,"1|2|3|4"]
[null,null,null,null,null,null,null,"1|2|3|4"]
[null,null,null,null,null,null,null,"1|2|3|4"]
[null,null,null,null,null,null,null,"1|2|3|4"]
[null,null,null,null,null,null,null,"1|2|3|4"]
[null,null,null,null,null,null,null,"1|2|3|4"]
[null,null,null,null,null,null,null,"1|2|3|4"]
[null,null,null,null,null,null,null,"1|2|3|4"]
[null,null,null,null,null,null,null,"1|2|3|4"]
[null,null,null,null,null,null,null,"1|2|3|4"]
[null,null,null,null,null,null,null,"1|2|3|4"]
[null,null,null,null,null,null,null,"1|2|3|4"]
[null,null,null,null,null,null,null,"1|2|3|4"]
[null,null,null,null,null,null,null,"1|2|3|4"]
[null,null,null,null,null,null,null,"1|2|3|4"]
[null,null,null,null,null,null,null,"1|2|3|4"]
[null,null,null,null,null,null,null,"1|2|3|4"]
[null,null,null,null,null,null,null,"1|2|3|4"]
[null,null,null,null,null,null,null,"1|2|3|4"]
[null,null,null,null,null,null,null,"1|2|3|4"]
[null,null,null,null,null,null,null,"1|2|3|4"]
[null,null,null,null,null,null,null,"1|2|3|4"]
[null,null,null,null,null,null,null,"1|2|3|4"]
[null,null,null,null,null,null,null,"1|2|3|4"]
[null,null,null,null,null,null,null,"1|2|3|4"]
[null,null,null,null,null,null,null,"1|2|3|4"]
[null,null,null,null,null,null,null,"1|2|3|4"]
[null,null,null,null,null,null,null,"1|2|3|4"]
[null,null,null,null,null,null,null,"1|2|3|4"]
[null,null,null,null,null,null,null,"1|2|3|4"]
[null,null,null,null,null,null,null,"1|2|3|4"]
[null,null,null,null,null,null,null,"1|2|3|4"]
[null,null,null,null,null,null,null,"1|2|3|4"]
[null,null,null,null,null,null,null,"1|2|3|4"]
[null,null,null,null,null,null,null,"1|2|3|4"]
[null,null,null,null,null,null,null,"1|2|3|4"]
[null,null,null,null,null,null,null,"1|2|3|4"]
[null,null,null,null,null,null,null,"1|2|3|4"]
[null,null,null,null,null,null,null,"1|2|3|4"]
[null,null,null,null,null,null,null,{"$f":"IF(A515=\"\",H514,H514&\"|\"&A515)","v":"1|2|3|4"}]
[null,null,null,null,null,null,null,"1|2|3|4"]
[null,null,null,null,null,null,null,"1|2|3|4"]
[null,null,null,null,null,null,null,"1|2|3|4"]
[null,null,null,null,null,null,null,"1|2|3|4"]
[null,null,null,null,null,null,null,"1|2|3|4"]
[null,null,null,null,null,null,null,"1|2|3|4"]
[null,null,null,null,null,null,null,"1|2|3|4"]
[null,null,null,null,null,null,null,"1|2|3|4"]
[null,null,null,null,null,null,null,"1|2|3|4"]
[null,null,null,null,null,null,null,"1|2|3|4"]
[null,null,null,null,null,null,null,"1|2|3|4"]
[null,null,null,null,null,null,null,"1|2|3|4"]
[null,null,null,null,null,null,null,"1|2|3|4"]
[null,null,null,null,null,null,null,"1|2|3|4"]
[null,null,null,null,null,null,null,"1|2|3|4"]
[null,null,null,null,null,null,null,"1|2|3|4"]
[null,null,null,null,null,null,null,"1|2|3|4"]
[null,null,null,null,null,null,null,"1|2|3|4"]
[null,null,null,null,null,null,null,"1|2|3|4"]
[null,null,null,null,null,null,null,"1|2|3|4"]
[null,null,null,null,null,null,null,"1|2|3|4"]
[null,null,null,null,null,null,null,"1|2|3|4"]
[null,null,null,null,null,null,null,"1|2|3|4"]
[null,null,null,null,null,null,null,"1|2|3|4"]
[null,null,null,null,null,null,null,"1|2|3|4"]
[null,null,null,null,null,null,null,"1|2|3|4"]
[null,null,null,null,null,null,null,"1|2|3|4"]
[null,null,null,null,null,null,null,"1|2|3|4"]
[null,null,null,null,null,null,null,"1|2|3|4"]
[null,null,null,null,null,null,null,"1|2|3|4"]
[null,null,null,null,null,null,null,"1|2|3|4"]
[null,null,null,null,null,null,null,"1|2|3|4"]
[null,null,null,null,null,null,null,"1|2|3|4"]
[null,null,null,null,null,null,null,"1|2|3|4"]
[null,null,null,null,null,null,null,"1|2|3|4"]
[null,null,null,null,null,null,null,"1|2|3|4"]
[null,null,null,null,null,null,null,"1|2|3|4"]
[null,null,null,null,null,null,null,"1|2|3|4"]
[null,null,null,null,null,null,null,"1|2|3|4"]
[null,null,null,null,null,null,null,"1|2|3|4"]
[null,null,null,null,null,null,null,"1|2|3|4"]
[null,null,null,null,null,null,null,"1|2|3|4"]
[null,null,null,null,null,null,null,"1|2|3|4"]
[null,null,null,null,null,null,null,"1|2|3|4"]
[null,null,null,null,null,null,null,"1|2|3|4"]
[null,null,null,null,null,null,null,"1|2|3|4"]
[null,null,null,null,null,null,null,"1|2|3|4"]
[null,null,null,null,null,null,null,"1|2|3|4"]
[null,null,null,null,null,null,null,"1|2|3|4"]
[null,null,null,null,null,null,null,"1|2|3|4"]
[null,null,null,null,null,null,null,"1|2|3|4"]
[null,null,null,null,null,null,null,"1|2|3|4"]
[null,null,null,null,null,null,null,"1|2|3|4"]
[null,null,null,null,null,null,null,"1|2|3|4"]
[null,null,null,null,null,null,null,"1|2|3|4"]
[null,null,null,null,null,null,null,"1|2|3|4"]
[null,null,null,null,null,null,null,"1|2|3|4"]
[null,null,null,null,null,null,null,"1|2|3|4"]
[null,null,null,null,null,null,null,"1|2|3|4"]
[null,null,null,null,null,null,null,"1|2|3|4"]
[null,null,null,null,null,null,null,"1|2|3|4"]
[null,null,null,null,null,null,null,"1|2|3|4"]
[null,null,null,null,null,null,null,"1|2|3|4"]
[null,null,null,null,null,null,null,{"$f":"IF(A579=\"\",H578,H578&\"|\"&A579)","v":"1|2|3|4"}]
[null,null,null,null,null,null,null,"1|2|3|4"]
[null,null,null,null,null,null,null,"1|2|3|4"]
[null,null,null,null,null,null,null,"1|2|3|4"]
[null,null,null,null,null,null,null,"1|2|3|4"]
[null,null,null,null,null,null,null,"1|2|3|4"]
[null,null,null,null,null,null,null,"1|2|3|4"]
[null,null,null,null,null,null,null,"1|2|3|4"]
[null,null,null,null,null,null,null,"1|2|3|4"]
[null,null,null,null,null,null,null,"1|2|3|4"]
[null,null,null,null,null,null,null,"1|2|3|4"]
[null,null,null,null,null,null,null,"1|2|3|4"]
[null,null,null,null,null,null,null,"1|2|3|4"]
[null,null,null,null,null,null,null,"1|2|3|4"]
[null,null,null,null,null,null,null,"1|2|3|4"]
[null,null,null,null,null,null,null,"1|2|3|4"]
[null,null,null,null,null,null,null,"1|2|3|4"]
[null,null,null,null,null,null,null,"1|2|3|4"]
[null,null,null,null,null,null,null,"1|2|3|4"]
[null,null,null,null,null,null,null,"1|2|3|4"]
[null,null,null,null,null,null,null,"1|2|3|4"]
[null,null,null,null,null,null,null,"1|2|3|4"]
[null,null,null,null,null,null,null,"1|2|3|4"]
[null,null,null,null,null,null,null,"1|2|3|4"]
[null,null,null,null,null,null,null,"1|2|3|4"]
[null,null,null,null,null,null,null,"1|2|3|4"]
[null,null,null,null,null,null,null,"1|2|3|4"]
[null,null,null,null,null,null,null,"1|2|3|4"]
[null,null,null,null,null,null,null,"1|2|3|4"]
[null,null,null,null,null,null,null,"1|2|3|4"]
[null,null,null,null,null,null,null,"1|2|3|4"]
[null,null,null,null,null,null,null,"1|2|3|4"]
[null,null,null,null,null,null,null,"1|2|3|4"]
[null,null,null,null,null,null,null,"1|2|3|4"]
[null,null,null,null,null,null,null,"1|2|3|4"]
[null,null,null,null,null,null,null,"1|2|3|4"]
[null,null,null,null,null,null,null,"1|2|3|4"]
[null,null,null,null,null,null,null,"1|2|3|4"]
[null,null,null,null,null,null,null,"1|2|3|4"]
[null,null,null,null,null,null,null,"1|2|3|4"]
[null,null,null,null,null,null,null,"1|2|3|4"]
[null,null,null,null,null,null,null,"1|2|3|4"]
[null,null,null,null,null,null,null,"1|2|3|4"]
[null,null,null,null,null,null,null,"1|2|3|4"]
[null,null,null,null,null,null,null,"1|2|3|4"]
[null,null,null,null,null,null,null,"1|2|3|4"]
[null,null,null,null,null,null,null,"1|2|3|4"]
[null,null,null,null,null,null,null,"1|2|3|4"]
[null,null,null,null,null,null,null,"1|2|3|4"]
[null,null,null,null,null,null,null,"1|2|3|4"]
[null,null,null,null,null,null,null,"1|2|3|4"]
[null,null,null,null,null,null,null,"1|2|3|4"]
[null,null,null,null,null,null,null,"1|2|3|4"]
[null,null,null,null,null,null,null,"1|2|3|4"]
[null,null,null,null,null,null,null,"1|2|3|4"]
[null,null,null,null,null,null,null,"1|2|3|4"]
[null,null,null,null,null,null,null,"1|2|3|4"]
[null,null,null,null,null,null,null,"1|2|3|4"]
[null,null,null,null,null,null,null,"1|2|3|4"]
[null,null,null,null,null,null,null,"1|2|3|4"]
[null,null,null,null,null,null,null,"1|2|3|4"]
[null,null,null,null,null,null,null,"1|2|3|4"]
[null,null,null,null,null,null,null,"1|2|3|4"]
[null,null,null,null,null,null,null,"1|2|3|4"]
[null,null,null,null,null,null,null,{"$f":"IF(A643=\"\",H642,H642&\"|\"&A643)","v":"1|2|3|4"}]
[null,null,null,null,null,null,null,"1|2|3|4"]
[null,null,null,null,null,null,null,"1|2|3|4"]
[null,null,null,null,null,null,null,"1|2|3|4"]
[null,null,null,null,null,null,null,"1|2|3|4"]
[null,null,null,null,null,null,null,"1|2|3|4"]
[null,null,null,null,null,null,null,"1|2|3|4"]
[null,null,null,null,null,null,null,"1|2|3|4"]
[null,null,null,null,null,null,null,"1|2|3|4"]
[null,null,null,null,null,null,null,"1|2|3|4"]
[null,null,null,null,null,null,null,"1|2|3|4"]
[null,null,null,null,null,null,null,"1|2|3|4"]
[null,null,null,null,null,null,null,"1|2|3|4"]
[null,null,null,null,null,null,null,"1|2|3|4"]
[null,null,null,null,null,null,null,"1|2|3|4"]
[null,null,null,null,null,null,null,"1|2|3|4"]
[null,null,null,null,null,null,null,"1|2|3|4"]
[null,null,null,null,null,null,null,"1|2|3|4"]
[null,null,null,null,null,null,null,"1|2|3|4"]
[null,null,null,null,null,null,null,"1|2|3|4"]
[null,null,null,null,null,null,null,"1|2|3|4"]
[null,null,null,null,null,null,null,"1|2|3|4"]
[null,null,null,null,null,null,null,"1|2|3|4"]
[null,null,null,null,null,null,null,"1|2|3|4"]
[null,null,null,null,null,null,null,"1|2|3|4"]
[null,null,null,null,null,null,null,"1|2|3|4"]
[null,null,null,null,null,null,null,"1|2|3|4"]
[null,null,null,null,null,null,null,"1|2|3|4"]
[null,null,null,null,null,null,null,"1|2|3|4"]
[null,null,null,null,null,null,null,"1|2|3|4"]
[null,null,null,null,null,null,null,"1|2|3|4"]
[null,null,null,null,null,null,null,"1|2|3|4"]
[null,null,null,null,null,null,null,"1|2|3|4"]
[null,null,null,null,null,null,null,"1|2|3|4"]
[null,null,null,null,null,null,null,"1|2|3|4"]
[null,null,null,null,null,null,null,"1|2|3|4"]
[null,null,null,null,null,null,null,"1|2|3|4"]
[null,null,null,null,null,null,null,"1|2|3|4"]
[null,null,null,null,null,null,null,"1|2|3|4"]
[null,null,null,null,null,null,null,"1|2|3|4"]
[null,null,null,null,null,null,null,"1|2|3|4"]
[null,null,null,null,null,null,null,"1|2|3|4"]
[null,null,null,null,null,null,null,"1|2|3|4"]
[null,null,null,null,null,null,null,"1|2|3|4"]
[null,null,null,null,null,null,null,"1|2|3|4"]
[null,null,null,null,null,null,null,"1|2|3|4"]
[null,null,null,null,null,null,null,"1|2|3|4"]
[null,null,null,null,null,null,null,"1|2|3|4"]
[null,null,null,null,null,null,null,"1|2|3|4"]
[null,null,null,null,null,null,null,"1|2|3|4"]
[null,null,null,null,null,null,null,"1|2|3|4"]
[null,null,null,null,null,null,null,"1|2|3|4"]
[null,null,null,null,null,null,null,"1|2|3|4"]
[null,null,null,null,null,null,null,"1|2|3|4"]
[null,null,null,null,null,null,null,"1|2|3|4"]
[null,null,null,null,null,null,null,"1|2|3|4"]
[null,null,null,null,null,null,null,"1|2|3|4"]
[null,null,null,null,null,null,null,"1|2|3|4"]
[null,null,null,null,null,null,null,"1|2|3|4"]
[null,null,null,null,null,null,null,"1|2|3|4"]
[null,null,null,null,null,null,null,"1|2|3|4"]
[null,null,null,null,null,null,null,"1|2|3|4"]
[null,null,null,null,null,null,null,"1|2|3|4"]
[null,null,null,null,null,null,null,"1|2|3|4"]
[null,null,null,null,null,null,null,{"$f":"IF(A707=\"\",H706,H706&\"|\"&A707)","v":"1|2|3|4"}]
[null,null,null,null,null,null,null,"1|2|3|4"]
[null,null,null,null,null,null,null,"1|2|3|4"]
[null,null,null,null,null,null,null,"1|2|3|4"]
[null,null,null,null,null,null,null,"1|2|3|4"]
[null,null,null,null,null,null,null,"1|2|3|4"]
[null,null,null,null,null,null,null,"1|2|3|4"]
[null,null,null,null,null,null,null,"1|2|3|4"]
[null,null,null,null,null,null,null,"1|2|3|4"]
[null,null,null,null,null,null,null,"1|2|3|4"]
[null,null,null,null,null,null,null,"1|2|3|4"]
[null,null,null,null,null,null,null,"1|2|3|4"]
[null,null,null,null,null,null,null,"1|2|3|4"]
[null,null,null,null,null,null,null,"1|2|3|4"]
[null,null,null,null,null,null,null,"1|2|3|4"]
[null,null,null,null,null,null,null,"1|2|3|4"]
[null,null,null,null,null,null,null,"1|2|3|4"]
[null,null,null,null,null,null,null,"1|2|3|4"]
[null,null,null,null,null,null,null,"1|2|3|4"]
[null,null,null,null,null,null,null,"1|2|3|4"]
[null,null,null,null,null,null,null,"1|2|3|4"]
[null,null,null,null,null,null,null,"1|2|3|4"]
[null,null,null,null,null,null,null,"1|2|3|4"]
[null,null,null,null,null,null,null,"1|2|3|4"]
[null,null,null,null,null,null,null,"1|2|3|4"]
[null,null,null,null,null,null,null,"1|2|3|4"]
[null,null,null,null,null,null,null,"1|2|3|4"]
[null,null,null,null,null,null,null,"1|2|3|4"]
[null,null,null,null,null,null,null,"1|2|3|4"]
[null,null,null,null,null,null,null,"1|2|3|4"]
[null,null,null,null,null,null,null,"1|2|3|4"]
[null,null,null,null,null,null,null,"1|2|3|4"]
[null,null,null,null,null,null,null,"1|2|3|4"]
[null,null,null,null,null,null,null,"1|2|3|4"]
[null,null,null,null,null,null,null,"1|2|3|4"]
[null,null,null,null,null,null,null,"1|2|3|4"]
[null,null,null,null,null,null,null,"1|2|3|4"]
[null,null,null,null,null,null,null,"1|2|3|4"]
[null,null,null,null,null,null,null,"1|2|3|4"]
[null,null,null,null,null,null,null,"1|2|3|4"]
[null,null,null,null,null,null,null,"1|2|3|4"]
[null,null,null,null,null,null,null,"1|2|3|4"]
[null,null,null,null,null,null,null,"1|2|3|4"]
[null,null,null,null,null,null,null,"1|2|3|4"]
[null,null,null,null,null,null,null,"1|2|3|4"]
[null,null,null,null,null,null,null,"1|2|3|4"]
[null,null,null,null,null,null,null,"1|2|3|4"]
[null,null,null,null,null,null,null,"1|2|3|4"]
[null,null,null,null,null,null,null,"1|2|3|4"]
[null,null,null,null,null,null,null,"1|2|3|4"]
[null,null,null,null,null,null,null,"1|2|3|4"]
[null,null,null,null,null,null,null,"1|2|3|4"]
[null,null,null,null,null,null,null,"1|2|3|4"]
[null,null,null,null,null,null,null,"1|2|3|4"]
[null,null,null,null,null,null,null,"1|2|3|4"]
[null,null,null,null,null,null,null,"1|2|3|4"]
[null,null,null,null,null,null,null,"1|2|3|4"]
[null,null,null,null,null,null,null,"1|2|3|4"]
[null,null,null,null,null,null,null,"1|2|3|4"]
[null,null,null,null,null,null,null,"1|2|3|4"]
[null,null,null,null,null,null,null,"1|2|3|4"]
[null,null,null,null,null,null,null,"1|2|3|4"]
[null,null,null,null,null,null,null,"1|2|3|4"]
[null,null,null,null,null,null,null,"1|2|3|4"]
[null,null,null,null,null,null,null,{"$f":"IF(A771=\"\",H770,H770&\"|\"&A771)","v":"1|2|3|4"}]
[null,null,null,null,null,null,null,"1|2|3|4"]
[null,null,null,null,null,null,null,"1|2|3|4"]
[null,null,null,null,null,null,null,"1|2|3|4"]
[null,null,null,null,null,null,null,"1|2|3|4"]
[null,null,null,null,null,null,null,"1|2|3|4"]
[null,null,null,null,null,null,null,"1|2|3|4"]
[null,null,null,null,null,null,null,"1|2|3|4"]
[null,null,null,null,null,null,null,"1|2|3|4"]
[null,null,null,null,null,null,null,"1|2|3|4"]
[null,null,null,null,null,null,null,"1|2|3|4"]
[null,null,null,null,null,null,null,"1|2|3|4"]
[null,null,null,null,null,null,null,"1|2|3|4"]
[null,null,null,null,null,null,null,"1|2|3|4"]
[null,null,null,null,null,null,null,"1|2|3|4"]
[null,null,null,null,null,null,null,"1|2|3|4"]
[null,null,null,null,null,null,null,"1|2|3|4"]
[null,null,null,null,null,null,null,"1|2|3|4"]
[null,null,null,null,null,null,null,"1|2|3|4"]
[null,null,null,null,null,null,null,"1|2|3|4"]
[null,null,null,null,null,null,null,"1|2|3|4"]
[null,null,null,null,null,null,null,"1|2|3|4"]
[null,null,null,null,null,null,null,"1|2|3|4"]
[null,null,null,null,null,null,null,"1|2|3|4"]
[null,null,null,null,null,null,null,"1|2|3|4"]
[null,null,null,null,null,null,null,"1|2|3|4"]
[null,null,null,null,null,null,null,"1|2|3|4"]
[null,null,null,null,null,null,null,"1|2|3|4"]
[null,null,null,null,null,null,null,"1|2|3|4"]
[null,null,null,null,null,null,null,"1|2|3|4"]
[null,null,null,null,null,null,null,"1|2|3|4"]
[null,null,null,null,null,null,null,"1|2|3|4"]
[null,null,null,null,null,null,null,"1|2|3|4"]
[null,null,null,null,null,null,null,"1|2|3|4"]
[null,null,null,null,null,null,null,"1|2|3|4"]
[null,null,null,null,null,null,null,"1|2|3|4"]
[null,null,null,null,null,null,null,"1|2|3|4"]
[null,null,null,null,null,null,null,"1|2|3|4"]
[null,null,null,null,null,null,null,"1|2|3|4"]
[null,null,null,null,null,null,null,"1|2|3|4"]
[null,null,null,null,null,null,null,"1|2|3|4"]
[null,null,null,null,null,null,null,"1|2|3|4"]
[null,null,null,null,null,null,null,"1|2|3|4"]
[null,null,null,null,null,null,null,"1|2|3|4"]
[null,null,null,null,null,null,null,"1|2|3|4"]
[null,null,null,null,null,null,null,"1|2|3|4"]
[null,null,null,null,null,null,null,"1|2|3|4"]
[null,null,null,null,null,null,null,"1|2|3|4"]
[null,null,null,null,null,null,null,"1|2|3|4"]
[null,null,null,null,null,null,null,"1|2|3|4"]
[null,null,null,null,null,null,null,"1|2|3|4"]
[null,null,null,null,null,null,null,"1|2|3|4"]
[null,null,null,null,null,null,null,"1|2|3|4"]
[null,null,null,null,null,null,null,"1|2|3|4"]
[null,null,null,null,null,null,null,"1|2|3|4"]
[null,null,null,null,null,null,null,"1|2|3|4"]
[null,null,null,null,null,null,null,"1|2|3|4"]
[null,null,null,null,null,null,null,"1|2|3|4"]
[null,null,null,null,null,null,null,"1|2|3|4"]
[null,null,null,null,null,null,null,"1|2|3|4"]
[null,null,null,null,null,null,null,"1|2|3|4"]
[null,null,null,null,null,null,null,"1|2|3|4"]
[null,null,null,null,null,null,null,"1|2|3|4"]
[null,null,null,null,null,null,null,"1|2|3|4"]
[null,null,null,null,null,null,null,{"$f":"IF(A835=\"\",H834,H834&\"|\"&A835)","v":"1|2|3|4"}]
[null,null,null,null,null,null,null,"1|2|3|4"]
[null,null,null,null,null,null,null,"1|2|3|4"]
[null,null,null,null,null,null,null,"1|2|3|4"]
[null,null,null,null,null,null,null,"1|2|3|4"]
[null,null,null,null,null,null,null,"1|2|3|4"]
[null,null,null,null,null,null,null,"1|2|3|4"]
[null,null,null,null,null,null,null,"1|2|3|4"]
[null,null,null,null,null,null,null,"1|2|3|4"]
[null,null,null,null,null,null,null,"1|2|3|4"]
[null,null,null,null,null,null,null,"1|2|3|4"]
[null,null,null,null,null,null,null,"1|2|3|4"]
[null,null,null,null,null,null,null,"1|2|3|4"]
[null,null,null,null,null,null,null,"1|2|3|4"]
[null,null,null,null,null,null,null,"1|2|3|4"]
[null,null,null,null,null,null,null,"1|2|3|4"]
[null,null,null,null,null,null,null,"1|2|3|4"]
[null,null,null,null,null,null,null,"1|2|3|4"]
[null,null,null,null,null,null,null,"1|2|3|4"]
[null,null,null,null,null,null,null,"1|2|3|4"]
[null,null,null,null,null,null,null,"1|2|3|4"]
[null,null,null,null,null,null,null,"1|2|3|4"]
[null,null,null,null,null,null,null,"1|2|3|4"]
[null,null,null,null,null,null,null,"1|2|3|4"]
[null,null,null,null,null,null,null,"1|2|3|4"]
[null,null,null,null,null,null,null,"1|2|3|4"]
[null,null,null,null,null,null,null,"1|2|3|4"]
[null,null,null,null,null,null,null,"1|2|3|4"]
[null,null,null,null,null,null,null,"1|2|3|4"]
[null,null,null,null,null,null,null,"1|2|3|4"]
[null,null,null,null,null,null,null,"1|2|3|4"]
[null,null,null,null,null,null,null,"1|2|3|4"]
[null,null,null,null,null,null,null,"1|2|3|4"]
[null,null,null,null,null,null,null,"1|2|3|4"]
[null,null,null,null,null,null,null,"1|2|3|4"]
[null,null,null,null,null,null,null,"1|2|3|4"]
[null,null,null,null,null,null,null,"1|2|3|4"]
[null,null,null,null,null,null,null,"1|2|3|4"]
[null,null,null,null,null,null,null,"1|2|3|4"]
[null,null,null,null,null,null,null,"1|2|3|4"]
[null,null,null,null,null,null,null,"1|2|3|4"]
[null,null,null,null,null,null,null,"1|2|3|4"]
[null,null,null,null,null,null,null,"1|2|3|4"]
[null,null,null,null,null,null,null,"1|2|3|4"]
[null,null,null,null,null,null,null,"1|2|3|4"]
[null,null,null,null,null,null,null,"1|2|3|4"]
[null,null,null,null,null,null,null,"1|2|3|4"]
[null,null,null,null,null,null,null,"1|2|3|4"]
[null,null,null,null,null,null,null,"1|2|3|4"]
[null,null,null,null,null,null,null,"1|2|3|4"]
[null,null,null,null,null,null,null,"1|2|3|4"]
[null,null,null,null,null,null,null,"1|2|3|4"]
[null,null,null,null,null,null,null,"1|2|3|4"]
[null,null,null,null,null,null,null,"1|2|3|4"]
[null,null,null,null,null,null,null,"1|2|3|4"]
[null,null,null,null,null,null,null,"1|2|3|4"]
[null,null,null,null,null,null,null,"1|2|3|4"]
[null,null,null,null,null,null,null,"1|2|3|4"]
[null,null,null,null,null,null,null,"1|2|3|4"]
[null,null,null,null,null,null,null,"1|2|3|4"]
[null,null,null,null,null,null,null,"1|2|3|4"]
[null,null,null,null,null,null,null,"1|2|3|4"]
[null,null,null,null,null,null,null,"1|2|3|4"]
[null,null,null,null,null,null,null,"1|2|3|4"]
[null,null,null,null,null,null,null,{"$f":"IF(A899=\"\",H898,H898&\"|\"&A899)","v":"1|2|3|4"}]
[null,null,null,null,null,null,null,"1|2|3|4"]
[null,null,null,null,null,null,null,"1|2|3|4"]
[null,null,null,null,null,null,null,"1|2|3|4"]
[null,null,null,null,null,null,null,"1|2|3|4"]
[null,null,null,null,null,null,null,"1|2|3|4"]
[null,null,null,null,null,null,null,"1|2|3|4"]
[null,null,null,null,null,null,null,"1|2|3|4"]
[null,null,null,null,null,null,null,"1|2|3|4"]
[null,null,null,null,null,null,null,"1|2|3|4"]
[null,null,null,null,null,null,null,"1|2|3|4"]
[null,null,null,null,null,null,null,"1|2|3|4"]
[null,null,null,null,null,null,null,"1|2|3|4"]
[null,null,null,null,null,null,null,"1|2|3|4"]
[null,null,null,null,null,null,null,"1|2|3|4"]
[null,null,null,null,null,null,null,"1|2|3|4"]
[null,null,null,null,null,null,null,"1|2|3|4"]
[null,null,null,null,null,null,null,"1|2|3|4"]
[null,null,null,null,null,null,null,"1|2|3|4"]
[null,null,null,null,null,null,null,"1|2|3|4"]
[null,null,null,null,null,null,null,"1|2|3|4"]
[null,null,null,null,null,null,null,"1|2|3|4"]
[null,null,null,null,null,null,null,"1|2|3|4"]
[null,null,null,null,null,null,null,"1|2|3|4"]
[null,null,null,null,null,null,null,"1|2|3|4"]
[null,null,null,null,null,null,null,"1|2|3|4"]
[null,null,null,null,null,null,null,"1|2|3|4"]
[null,null,null,null,null,null,null,"1|2|3|4"]
[null,null,null,null,null,null,null,"1|2|3|4"]
[null,null,null,null,null,null,null,"1|2|3|4"]
[null,null,null,null,null,null,null,"1|2|3|4"]
[null,null,null,null,null,null,null,"1|2|3|4"]
[null,null,null,null,null,null,null,"1|2|3|4"]
[null,null,null,null,null,null,null,"1|2|3|4"]
[null,null,null,null,null,null,null,"1|2|3|4"]
[null,null,null,null,null,null,null,"1|2|3|4"]
[null,null,null,null,null,null,null,"1|2|3|4"]
[null,null,null,null,null,null,null,"1|2|3|4"]
[null,null,null,null,null,null,null,"1|2|3|4"]
[null,null,null,null,null,null,null,"1|2|3|4"]
[null,null,null,null,null,null,null,"1|2|3|4"]
[null,null,null,null,null,null,null,"1|2|3|4"]
[null,null,null,null,null,null,null,"1|2|3|4"]
[null,null,null,null,null,null,null,"1|2|3|4"]
[null,null,null,null,null,null,null,"1|2|3|4"]
[null,null,null,null,null,null,null,"1|2|3|4"]
[null,null,null,null,null,null,null,"1|2|3|4"]
[null,null,null,null,null,null,null,"1|2|3|4"]
[null,null,null,null,null,null,null,"1|2|3|4"]
[null,null,null,null,null,null,null,"1|2|3|4"]
[null,null,null,null,null,null,null,"1|2|3|4"]
[null,null,null,null,null,null,null,"1|2|3|4"]
[null,null,null,null,null,null,null,"1|2|3|4"]
[null,null,null,null,null,null,null,"1|2|3|4"]
[null,null,null,null,null,null,null,"1|2|3|4"]
[null,null,null,null,null,null,null,"1|2|3|4"]
[null,null,null,null,null,null,null,"1|2|3|4"]
[null,null,null,null,null,null,null,"1|2|3|4"]
[null,null,null,null,null,null,null,"1|2|3|4"]
[null,null,null,null,null,null,null,"1|2|3|4"]
[null,null,null,null,null,null,null,"1|2|3|4"]
[null,null,null,null,null,null,null,"1|2|3|4"]
[null,null,null,null,null,null,null,"1|2|3|4"]
[null,null,null,null,null,null,null,"1|2|3|4"]
[null,null,null,null,null,null,null,{"$f":"IF(A963=\"\",H962,H962&\"|\"&A963)","v":"1|2|3|4"}]
[null,null,null,null,null,null,null,"1|2|3|4"]
[null,null,null,null,null,null,null,"1|2|3|4"]
[null,null,null,null,null,null,null,"1|2|3|4"]
[null,null,null,null,null,null,null,"1|2|3|4"]
[null,null,null,null,null,null,null,"1|2|3|4"]
[null,null,null,null,null,null,null,"1|2|3|4"]
[null,null,null,null,null,null,null,"1|2|3|4"]
[null,null,null,null,null,null,null,"1|2|3|4"]
[null,null,null,null,null,null,null,"1|2|3|4"]
[null,null,null,null,null,null,null,"1|2|3|4"]
[null,null,null,null,null,null,null,"1|2|3|4"]
[null,null,null,null,null,null,null,"1|2|3|4"]
[null,null,null,null,null,null,null,"1|2|3|4"]
[null,null,null,null,null,null,null,"1|2|3|4"]
[null,null,null,null,null,null,null,"1|2|3|4"]
[null,null,null,null,null,null,null,"1|2|3|4"]
[null,null,null,null,null,null,null,"1|2|3|4"]
[null,null,null,null,null,null,null,"1|2|3|4"]
[null,null,null,null,null,null,null,"1|2|3|4"]
[null,null,null,null,null,null,null,"1|2|3|4"]
[null,null,null,null,null,null,null,"1|2|3|4"]
[null,null,null,null,null,null,null,"1|2|3|4"]
[null,null,null,null,null,null,null,"1|2|3|4"]
[null,null,null,null,null,null,null,"1|2|3|4"]
[null,null,null,null,null,null,null,"1|2|3|4"]
[null,null,null,null,null,null,null,"1|2|3|4"]
[null,null,null,null,null,null,null,"1|2|3|4"]
[null,null,null,null,null,null,null,"1|2|3|4"]
[null,null,null,null,null,null,null,"1|2|3|4"]
[null,null,null,null,null,null,null,"1|2|3|4"]
[null,null,null,null,null,null,null,"1|2|3|4"]
[null,null,null,null,null,null,null,"1|2|3|4"]
[null,null,null,null,null,null,null,"1|2|3|4"]
[null,null,null,null,null,null,null,"1|2|3|4"]
[null,null,null,null,null,null,null,"1|2|3|4"]
[null,null,null,null,null,null,null,"1|2|3|4"]
[null,null,null,null,null,null,null,"1|2|3|4"]

{"sheet":"List2","index":1,"n_rows":0,"n_cols":0,"rows_kept":0,"cut":false,"hidden":false,"merged":[]}

{"sheet":"List3","index":2,"n_rows":0,"n_cols":0,"rows_kept":0,"cut":false,"hidden":false,"merged":[]}